bitfinex-derivatives/quotes_SOLF0:USTF0_20240905
["timestamp","ask_amount","ask_price","bid_price","bid_amount"]
[1725564712948,0.05139765,129.27,129.25,0.04984856]
[1725564713144,3.8687,129.26,129.25,0.04984856]
[1725564716851,0.05139765,129.27,129.25,26.81984856]
[1725564717260,0.28450093,129.34,129.25,28.187]
[1725564717454,3.8677,129.3,129.25,29.578]
[1725564718361,0.05558057,129.29,129.26,0.05933121]
[1725564719456,0.05558057,129.29,129.28,3.8681]
[1725564720457,33.42,129.38,129.31,3.867]
[1725564720663,0.28440432,129.37,129.27,33.42]
[1725564721266,0.03212251,129.33,129.31,3.91615075]
[1725564721654,0.03212251,129.33,129.31,0.04905075]
[1725564722360,3.90449303,129.39,129.31,0.04905075]
[1725564722661,0.28438475,129.38,129.31,2.6672]
[1725564722862,33.42,129.38,129.31,2.6672]
[1725564723361,3.8662,129.35,129.33,0.05432953]
[1725564723560,33.42,129.38,129.33,0.05432953]
[1725564723964,3.8662,129.35,129.33,0.05432953]
[1725564725259,3.8662,129.35,129.33,3.92082953]
[1725564725459,5.44139674,129.4,129.33,3.92082953]
[1725564725657,0.28436938,129.39,129.33,3.92082953]
[1725564725864,0.28436938,129.39,129.33,0.05432953]
[1725564726170,3.866,129.35,129.33,0.05432953]
[1725564727065,3.866,129.35,129.33,3.92082953]
[1725564727865,3.8663,129.34,129.33,0.05432953]
[1725564728967,3.8662,129.35,129.33,0.05432953]
[1725564730463,3.8659,129.36,129.33,3.92092953]
[1725564730969,3.866,129.35,129.33,3.92092953]
[1725564731170,33.42,129.37,129.33,0.05432953]
[1725564731462,33.42,129.37,129.27,34.8639]
[1725564731463,3.8677,129.3,129.27,1.4439]
[1725564732062,3.8672,129.31,129.27,1.4439]
[1725564732461,0.05121731,129.3,129.28,0.05332584]
[1725564732667,0.05121731,129.3,129.29,3.8677]
[1725564732866,0.05121731,129.3,129.28,0.05332584]
[1725564733768,0.05121731,129.3,129.28,3.92132584]
[1725564734170,0.05121731,129.3,129.28,0.05332584]
[1725564734471,0.05121731,129.3,129.29,3.8678]
[1725564734861,0.05121731,129.3,129.28,0.05332584]
[1725564736268,0.05121731,129.3,129.29,3.8678]
[1725564736772,0.05121731,129.3,129.28,0.05332584]
[1725564736966,3.91891731,129.3,129.28,0.05332584]
[1725564737167,0.05121731,129.3,129.28,0.05332584]
[1725564737568,0.05121731,129.3,129.29,3.8678]
[1725564739277,0.05121731,129.3,129.28,0.05332584]
[1725564739278,3.91891731,129.3,129.28,3.92122584]
[1725564739473,3.91891731,129.3,129.28,0.05332584]
[1725564739474,0.05121731,129.3,129.28,0.05332584]
[1725564739880,3.8678,129.29,129.28,0.05332584]
[1725564740279,0.05121731,129.3,129.28,0.05332584]
[1725564740476,3.91891731,129.3,129.28,0.05332584]
[1725564741278,3.91891731,129.3,129.28,3.92132584]
[1725564743187,3.91891731,129.3,129.28,0.05332584]
[1725564743385,3.8678,129.29,129.28,0.05332584]
[1725564744180,0.05121731,129.3,129.28,3.92122584]
[1725564745385,0.05121731,129.3,129.28,0.05332584]
[1725564746090,3.8678,129.29,129.28,0.05332584]
[1725564756595,0.05121731,129.3,129.28,0.05332584]
[1725564757002,3.8678,129.29,129.28,0.05332584]
[1725564758200,0.05121731,129.3,129.28,3.92122584]
[1725564758201,3.91881731,129.3,129.28,3.92122584]
[1725564758403,0.05121731,129.3,129.28,0.05332584]
[1725564758703,3.8678,129.29,129.28,0.05332584]
[1725564770410,3.91881731,129.3,129.28,3.92142584]
[1725564770611,0.05121731,129.3,129.29,10.7]
[1725564770819,10.98443079,129.36,129.29,12.0948]
[1725564771024,10.98443079,129.35,129.29,12.0948]
[1725564771222,10.7,129.35,129.29,12.0948]
[1725564772022,10.7,129.35,129.31,0.05069403]
[1725564772421,3.8671,129.32,129.31,0.05069403]
[1725564777221,3.8669,129.33,129.31,3.91789403]
[1725564778525,3.8669,129.33,129.31,0.05069403]
[1725564779029,3.8669,129.32,129.31,0.05069403]
[1725564787632,14.5669,129.32,129.31,0.05069403]
[1725564788630,3.8683,129.28,129.25,1.3122]
[1725564789628,3.8678,129.29,129.25,1.36600924]
[1725564789837,3.8678,129.29,129.26,10.7]
[1725564789838,0.05380625,129.28,129.26,10.7]
[1725564790032,0.05380625,129.28,129.26,10.74931554]
[1725564790233,3.92200625,129.28,129.26,0.04931554]
[1725564790633,0.05380625,129.28,129.26,0.04931554]
[1725564791133,3.8684,129.27,129.26,0.04931554]
[1725564791331,0.05380625,129.28,129.26,0.04931554]
[1725564792532,14.5684,129.27,129.26,0.04931554]
[1725564792730,10.7,129.27,129.19,12.138]
[1725564793040,10.7,129.23,129.19,1.438]
[1725564793234,10.7,129.22,129.19,1.438]
[1725564793830,10.7593845,129.22,129.19,0.05929349]
[1725564794341,3.8704,129.21,129.19,0.05929349]
[1725564795929,3.9294845,129.22,129.19,3.93009349]
[1725564796831,0.0593845,129.22,129.19,3.93009349]
[1725564797138,10.7,129.21,129.19,0.05929349]
[1725564797337,3.87843716,129.2,129.19,0.05929349]
[1725564797533,3.8705,129.2,129.19,0.05929349]
[1725564797731,7.82018641,129.2,129.19,0.05929349]
[1725564797931,3.8705,129.2,129.19,0.05929349]
[1725564798733,7.68194738,129.2,129.19,0.05929349]
[1725564800047,3.8705,129.2,129.19,0.05929349]
[1725564801238,3.8704,129.21,129.19,0.05929349]
[1725564801742,0.0593845,129.22,129.19,0.05929349]
[1725564801945,0.0593845,129.22,129.2,3.8705]
[1725564802445,3.9294845,129.22,129.19,0.05929349]
[1725564802742,3.9294845,129.22,129.19,3.92989349]
[1725564802944,3.8703,129.21,129.19,0.05929349]
[1725564803643,0.0593845,129.22,129.19,0.05929349]
[1725564804438,3.8704,129.21,129.19,0.05929349]
[1725564804842,0.0593845,129.22,129.19,0.05929349]
[1725564804843,3.8705,129.2,129.19,0.05929349]
[1725564805539,7.65901571,129.2,129.19,0.05929349]
[1725564805746,3.8705,129.2,129.19,0.05929349]
[1725564806142,18.50151099,129.2,129.19,0.05929349]
[1725564806348,14.5705,129.2,129.19,0.05929349]
[1725564806846,18.37489155,129.2,129.19,0.05929349]
[1725564808849,3.8705,129.2,129.19,0.05929349]
[1725564809940,7.78430521,129.2,129.19,0.05929349]
[1725564810136,3.8705,129.2,129.19,0.05929349]
[1725564810347,3.8703,129.21,129.19,0.05929349]
[1725564810646,10.7593845,129.22,129.19,0.05929349]
[1725564811544,3.8705,129.2,129.19,0.05929349]
[1725564812847,7.69368277,129.2,129.19,0.05929349]
[1725564814447,0.0593845,129.22,129.19,0.05929349]
[1725564814655,0.0593845,129.22,129.21,3.8702]
[1725564814950,115.19331051,129.27,129.21,10.7]
[1725564815153,3.8689,129.26,129.22,3.8697]
[1725564815852,0.04373729,129.25,129.23,0.05588302]
[1725564817345,0.04373729,129.25,129.23,3.92538302]
[1725564817944,0.04373729,129.25,129.24,3.8693]
[1725564820653,26.76,129.35,129.23,26.81588302]
[1725564820861,0.28452792,129.34,129.28,26.76]
[1725564821158,3.1943,129.37,129.28,26.76]
[1725564821461,0.28446157,129.36,129.28,26.76]
[1725564821649,0.28446157,129.36,129.31,0.05308814]
[1725564822055,3.8668,129.33,129.31,0.05308814]
[1725564822249,29.9543,129.37,129.31,0.05308814]
[1725564822453,0.28445335,129.36,129.31,0.05308814]
[1725564823357,3.8668,129.33,129.31,0.05308814]
[1725564824660,3.8669,129.32,129.31,0.05308814]
[1725564826163,29.2884,129.37,129.31,0.05308814]
[1725564826362,0.28442821,129.36,129.31,0.05308814]
[1725564826562,3.8668,129.33,129.31,0.05308814]
[1725564826967,28.1632,129.37,129.31,0.05308814]
[1725564827159,0.28443403,129.36,129.31,0.05308814]
[1725564827657,0.28443403,129.36,129.33,3.8664]
[1725564827658,3.866,129.36,129.33,3.8664]
[1725564828361,3.8661,129.35,129.32,3.8667]
[1725564828666,3.8661,129.35,129.32,0.05125229]
[1725564828865,3.8658,129.36,129.33,3.8664]
[1725564829067,3.8658,129.36,129.33,0.05461969]
[1725564829667,3.8658,129.36,129.33,3.92111969]
[1725564830068,96.34802047,129.41,129.33,0.05461969]
[1725564830255,3.86495448,129.41,129.36,0.05812767]
[1725564830458,27.8844,129.43,129.36,0.05812767]
[1725564830459,3.865,129.39,129.36,0.05812767]
[1725564830668,3.84716323,129.43,129.36,26.81812767]
[1725564830862,0.28427979,129.42,129.36,26.81812767]
[1725564831161,26.76,129.45,129.38,0.04915646]
[1725564831162,3.79804393,129.43,129.38,0.04915646]
[1725564831362,26.76,129.45,129.38,0.04915646]
[1725564831661,1.1239,129.48,129.38,26.80915646]
[1725564831867,3.81815577,129.54,129.34,6.57731806]
[1725564831868,0.2842231,129.47,129.42,0.05156604]
[1725564832163,3.2265,129.52,129.43,0.04896699]
[1725564832363,3.2265,129.52,129.4,4.0894]
[1725564832364,27.04418124,129.51,129.46,0.0570102]
[1725564832567,0.28418124,129.5,129.46,0.0570102]
[1725564832766,3.8623,129.48,129.46,0.0570102]
[1725564833065,26.76,129.49,129.46,0.0570102]
[1725564833263,3.8618,129.5,129.46,0.0570102]
[1725564833456,26.76,129.52,129.47,0.05606256]
[1725564833658,26.76,129.49,129.47,0.05606256]
[1725564833860,7.81727819,129.48,129.47,0.05331814]
[1725564834364,3.8621,129.48,129.47,0.05331814]
[1725564836063,30.70241955,129.49,129.4,4.0894]
[1725564836268,26.76,129.45,129.4,2.7454]
[1725564836668,3.864,129.42,129.4,1.3745]
[1725564836864,26.76,129.45,129.38,3.8649]
[1725564836865,26.76,129.43,129.38,3.8649]
[1725564837062,0.05043436,129.42,129.38,3.8649]
[1725564837264,0.05043436,129.42,129.39,0.05468387]
[1725564839277,3.8645,129.41,129.39,0.05468387]
[1725564839773,3.8645,129.4,129.39,0.05468387]
[1725564840373,3.8642,129.41,129.39,0.05468387]
[1725564840772,0.05043436,129.42,129.39,0.05468387]
[1725564841463,3.91453436,129.42,129.39,0.05468387]
[1725564842063,3.91453436,129.42,129.39,3.91938387]
[1725564842270,3.91453436,129.42,129.39,0.05468387]
[1725564842469,3.8643,129.41,129.39,0.05468387]
[1725564843267,3.91443436,129.42,129.39,0.05468387]
[1725564843969,0.05043436,129.42,129.39,0.05468387]
[1725564844372,0.05043436,129.42,129.4,3.8642]
[1725564845265,0.05043436,129.42,129.39,26.81468387]
[1725564845471,3.8632,129.45,129.39,26.81468387]
[1725564845775,30.62063183,129.47,129.39,26.81468387]
[1725564845970,26.76,129.47,129.37,26.76]
[1725564846171,26.76,129.45,129.37,26.76]
[1725564846471,26.76,129.45,129.4,0.05359047]
[1725564847276,3.8644,129.41,129.4,0.05359047]
[1725564850574,26.76,129.45,129.4,0.05359047]
[1725564851174,3.8635,129.44,129.4,0.05359047]
[1725564851375,26.76,129.45,129.4,0.05359047]
[1725564851977,3.8641,129.42,129.4,0.05359047]
[1725564853481,26.76,129.45,129.4,0.05359047]
[1725564855179,3.8641,129.42,129.4,0.05359047]
[1725564856286,3.81811385,129.47,129.4,0.05359047]
[1725564856287,26.76,129.47,129.4,0.05359047]
[1725564856487,30.71671569,129.47,129.4,0.05359047]
[1725564856674,3.8637,129.43,129.41,3.8642]
[1725564856874,3.8637,129.43,129.41,3.91681374]
[1725564857284,3.8637,129.43,129.41,0.05261374]
[1725564858485,3.8637,129.43,129.41,3.91681374]
[1725564858685,3.8635,129.44,129.41,3.91681374]
[1725564858885,30.71671569,129.47,129.41,0.05261374]
[1725564859080,26.76,129.45,129.41,0.05261374]
[1725564859284,3.8639,129.42,129.41,0.05261374]
[1725564865001,26.76,129.43,129.31,26.76]
[1725564865194,26.76,129.39,129.32,2.7816]
[1725564865396,3.8656,129.37,129.34,3.8662]
[1725564865895,0.05007431,129.37,129.35,3.8659]
[1725564866098,1.3339,129.46,129.34,30.68082777]
[1725564866397,26.76,129.45,129.36,26.76]
[1725564867101,3.8641,129.42,129.39,3.91832893]
[1725564867398,1.3339,129.46,129.39,0.05362893]
[1725564867705,3.8638,129.43,129.39,0.05362893]
[1725564868003,3.95671569,129.47,129.4,0.05400916]
[1725564869104,3.8633,129.44,129.41,3.8641]
[1725564869403,3.8633,129.44,129.41,3.91675364]
[1725564870203,3.8637,129.43,129.41,3.91675364]
[1725564871304,3.8635,129.44,129.41,3.91675364]
[1725564871800,3.8637,129.43,129.41,0.05265364]
[1725564872900,3.8637,129.43,129.41,3.91675364]
[1725564874298,3.8635,129.44,129.42,3.8638]
[1725564874902,3.8632,129.45,129.41,0.05265364]
[1725564875602,26.76,129.48,129.41,0.05265364]
[1725564875800,0.28418319,129.47,129.41,0.05265364]
[1725564876000,3.78728547,129.46,129.41,0.05265364]
[1725564876400,3.8635,129.44,129.41,3.91665364]
[1725564876603,3.93531388,129.45,129.41,0.05265364]
[1725564876799,26.76,129.46,129.41,0.05265364]
[1725564877103,26.76,129.42,129.35,1.4466]
[1725564877304,3.79501541,129.41,129.37,0.05838437]
[1725564877603,3.8648,129.4,129.37,3.92368437]
[1725564877801,3.79501541,129.41,129.37,3.92368437]
[1725564878001,3.865,129.39,129.37,3.92368437]
[1725564878210,3.865,129.39,129.37,0.05838437]
[1725564878413,3.79501541,129.41,129.37,0.05838437]
[1725564878606,3.8651,129.38,129.37,0.05838437]
[1725564880597,26.76,129.42,129.37,0.05838437]
[1725564880798,30.63402497,129.42,129.38,0.05326073]
[1725564881204,3.865,129.39,129.38,0.05326073]
[1725564882210,2.5364,129.45,129.38,0.05326073]
[1725564882410,0.28423338,129.44,129.38,0.05326073]
[1725564882809,3.8644,129.41,129.38,3.91826073]
[1725564886618,3.8646,129.4,129.38,0.05326073]
[1725564887015,26.76,129.44,129.38,0.05326073]
[1725564887414,26.76,129.44,129.39,3.8648]
[1725564889218,26.76,129.44,129.38,3.91826073]
[1725564889421,0.28424643,129.43,129.38,0.05326073]
[1725564889614,3.87815293,129.42,129.38,0.05326073]
[1725564889811,3.8648,129.4,129.38,0.05326073]
[1725564890009,26.76,129.44,129.38,0.05326073]
[1725564890211,0.28424649,129.43,129.38,0.05326073]
[1725564890616,3.9017389,129.42,129.38,0.05326073]
[1725564891017,26.76,129.44,129.38,0.05326073]
[1725564891322,0.2842498,129.43,129.38,0.05326073]
[1725564891523,3.81551476,129.42,129.38,0.05326073]
[1725564891824,3.8648,129.39,129.38,0.05326073]
[1725564900621,30.6793269,129.39,129.26,225.0]
[1725564900823,26.76,129.38,129.27,30.9045]
[1725564901023,26.76,129.36,129.27,34.83863546]
[1725564901225,26.76,129.34,129.27,8.07863546]
[1725564901423,26.76,129.34,129.27,6.66143546]
[1725564901615,26.76,129.34,129.27,10.52963546]
[1725564901925,0.05791787,129.32,129.29,0.05607852]
[1725564902322,3.8675,129.3,129.29,0.05607852]
[1725564904521,30.6275,129.3,129.22,4.2251]
[1725564904726,3.8692,129.25,129.22,4.2251]
[1725564905224,3.8695,129.24,129.22,2.777]
[1725564905418,26.76,129.26,129.18,1.4481]
[1725564905618,26.76,129.29,129.21,0.05431352]
[1725564905824,3.92140832,129.26,129.24,0.05907782]
[1725564906219,0.05250832,129.26,129.24,0.05907782]
[1725564906421,30.629,129.25,129.24,0.05907782]
[1725564906729,26.76,129.25,129.18,6.7295]
[1725564906927,3.8701,129.22,129.18,6.7295]
[1725564907324,26.76,129.23,129.18,2.8585]
[1725564907529,0.058713,129.22,129.19,0.0498369]
[1725564907728,3.8704,129.21,129.19,0.0498369]
[1725564908834,3.928713,129.22,129.19,0.0498369]
[1725564909225,0.058713,129.22,129.19,0.0498369]
[1725564909522,0.058713,129.22,129.19,26.8098369]
[1725564909728,0.058713,129.22,129.2,3.8705]
[1725564909925,0.058713,129.22,129.19,26.8098369]
[1725564910327,3.8692,129.25,129.21,3.87]
[1725564910636,26.76,129.27,129.21,3.87]
[1725564910933,3.8695,129.24,129.2,3.8703]
[1725564911327,0.0566861,129.23,129.21,0.05272932]
[1725564911527,0.0566861,129.23,129.21,3.92282932]
[1725564912531,0.0566861,129.23,129.22,3.8699]
[1725564912930,0.0566861,129.23,129.21,0.05272932]
[1725564913131,0.0566861,129.23,129.21,3.92282932]
[1725564913638,0.0566861,129.23,129.21,0.05272932]
[1725564914136,0.0566861,129.23,129.21,3.92262932]
[1725564914834,26.76,129.31,129.22,26.76]
[1725564915239,5.32480664,129.32,129.22,26.76]
[1725564915539,28.6375,129.33,129.22,26.76]
[1725564915733,3.8678,129.3,129.26,3.8685]
[1725564916037,0.05597073,129.29,129.26,0.05777252]
[1725564916438,3.8683,129.28,129.26,0.05777252]
[1725564916834,0.05597073,129.29,129.26,0.05777252]
[1725564917729,0.05597073,129.29,129.27,3.8683]
[1725564918534,3.92397073,129.29,129.26,3.92627252]
[1725564920840,3.8681,129.28,129.26,0.05777252]
[1725564921345,3.8684,129.27,129.26,0.05777252]
[1725564926136,0.05597073,129.29,129.26,0.05777252]
[1725564926949,3.8683,129.28,129.26,0.05777252]
[1725564927450,0.05597073,129.29,129.26,0.05777252]
[1725564927748,3.8681,129.28,129.26,0.05777252]
[1725564928449,3.8684,129.27,129.26,0.05777252]
[1725564929842,3.92397073,129.29,129.26,3.92627252]
[1725564930146,0.05597073,129.29,129.26,0.05777252]
[1725564930350,0.05597073,129.29,129.27,3.8683]
[1725564932339,3.92387073,129.29,129.27,3.8683]
[1725564933044,0.05597073,129.29,129.27,3.8683]
[1725564933248,0.05597073,129.29,129.28,3.8681]
[1725564936854,3.92397073,129.29,129.26,3.92627252]
[1725564937249,0.05597073,129.29,129.26,0.05777252]
[1725564937650,26.76,129.28,129.26,0.05777252]
[1725564937844,30.6284,129.27,129.26,0.05777252]
[1725564938355,3.8684,129.27,129.26,0.05777252]
[1725564938552,30.6284,129.27,129.26,0.05777252]
[1725564940553,30.6284,129.27,129.17,29.5617]
[1725564940554,26.76,129.27,129.17,29.5617]
[1725564940753,26.76,129.25,129.17,29.5617]
[1725564941357,30.55169424,129.25,129.17,29.5617]
[1725564941657,0.05922971,129.22,129.2,0.0532211]
[1725564941857,3.92932971,129.22,129.2,0.0532211]
[1725564942554,3.8702,129.21,129.2,0.0532211]
[1725564949467,26.76,129.22,129.15,1.3555]
[1725564949767,26.76,129.19,129.15,1.3555]
[1725564950562,3.8714,129.17,129.16,0.05580063]
[1725564952966,3.92055946,129.18,129.16,3.92740063]
[1725564953367,3.92055946,129.18,129.16,0.05580063]
[1725564954378,3.8714,129.17,129.16,0.05580063]
[1725564954773,0.04925946,129.18,129.16,0.05580063]
[1725564955578,3.92045946,129.18,129.16,3.92750063]
[1725564955773,0.04925946,129.18,129.16,0.05580063]
[1725564956177,0.04925946,129.18,129.16,3.92740063]
[1725564957271,3.92045946,129.18,129.16,3.92740063]
[1725564960578,3.92045946,129.18,129.16,0.05580063]
[1725564960982,0.04925946,129.18,129.16,0.05580063]
[1725564961183,0.04925946,129.18,129.16,3.92740063]
[1725564961377,3.8714,129.17,129.16,0.05580063]
[1725564963185,0.04925946,129.18,129.16,0.05580063]
[1725564964286,0.04925946,129.18,129.17,3.8714]
[1725564965688,251.25,129.31,129.16,0.05580063]
[1725564965886,251.25,129.31,129.14,26.76]
[1725564965887,3.8701,129.22,129.15,1.3279]
[1725564966288,3.8701,129.22,129.19,3.8707]
[1725564966789,26.76,129.21,129.19,0.05155197]
[1725564967185,3.8705,129.2,129.19,0.05155197]
[1725564968086,0.05055244,129.22,129.19,0.05155197]
[1725564969394,3.8702,129.21,129.19,3.92215197]
[1725564971187,3.8702,129.21,129.19,0.05155197]
[1725564971188,3.8705,129.2,129.19,0.05155197]
[1725564971390,26.76,129.21,129.13,1.4305]
[1725564971583,26.76,129.17,129.13,1.4305]
[1725564971783,3.8722,129.15,129.13,1.4305]
[1725564972392,3.92677721,129.15,129.13,5.35744817]
[1725564972591,3.92677721,129.15,129.13,3.92694817]
[1725564972986,39.04489986,129.14,128.93,225.0]
[1725564973196,0.28494041,129.13,129.02,1.3962]
[1725564973413,3.83991511,129.12,129.03,29.533]
[1725564973596,3.89690325,129.12,129.03,29.533]
[1725564974090,0.05597456,129.09,129.06,0.05408987]
[1725564974287,3.8741,129.08,129.06,0.05408987]
[1725564975801,3.8744,129.07,129.06,0.05408987]
[1725564977593,3.8744,129.07,129.02,1.3962]
[1725564977594,3.8756,129.03,129.02,1.3962]
[1725564977796,26.76,129.04,128.91,102.47072005]
[1725564977988,26.76,129.02,128.92,4.1443]
[1725564978193,26.76,129.0,128.92,4.1443]
[1725564978394,26.76,128.98,128.92,4.1443]
[1725564978793,0.05579553,128.96,128.94,0.05779165]
[1725564979191,3.878,128.95,128.94,0.05779165]
[1725564979891,0.05579553,128.96,128.94,0.05779165]
[1725564980892,0.05579553,128.96,128.94,3.93589165]
[1725564981098,0.05579553,128.96,128.94,0.05779165]
[1725564981889,0.05579553,128.96,128.95,3.878]
[1725564982195,0.05579553,128.96,128.94,0.05779165]
[1725564982703,0.05579553,128.96,128.94,3.93599165]
[1725564983794,0.05579553,128.96,128.95,3.878]
[1725564983994,3.8769,128.99,128.95,3.878]
[1725564984191,3.8769,128.99,128.94,0.05779165]
[1725564984395,3.8769,128.99,128.95,3.8779]
[1725564984792,3.8771,128.98,128.95,3.8779]
[1725564984997,3.93072828,128.98,128.95,3.93295804]
[1725564985199,0.05362828,128.98,128.95,3.93295804]
[1725564985804,0.05362828,128.98,128.96,3.8777]
[1725564986397,0.05362828,128.98,128.95,3.93295804]
[1725564986600,3.93072828,128.98,128.95,3.93295804]
[1725564986996,0.05362828,128.98,128.95,3.93295804]
[1725564987804,1.3357,129.03,128.95,3.93295804]
[1725564987805,33.51,129.06,128.95,0.05505804]
[1725564988104,3.8761,129.02,128.94,33.51]
[1725564988300,33.51,129.04,128.92,37.6543]
[1725564988504,1.3171,129.08,128.92,37.6543]
[1725564988505,33.51,129.02,128.92,37.6543]
[1725564988701,3.8767,129.0,128.96,3.9339092]
[1725564988908,0.04926088,128.98,128.96,3.9339092]
[1725564989308,0.04926088,128.98,128.97,3.8774]
[1725564989809,3.8764,129.01,128.96,0.0565092]
[1725564989810,3.8764,129.01,128.96,4.01650687]
[1725564990003,3.8764,129.01,128.96,0.0565092]
[1725564990609,0.05918462,129.0,128.96,3.95367439]
[1725564990901,0.05918462,129.0,128.97,0.05669336]
[1725564991105,0.05918462,129.0,128.98,3.8769]
[1725564992702,0.05918462,129.0,128.99,3.8768]
[1725564992903,0.05918462,129.0,128.97,0.05669336]
[1725564994306,3.877,128.99,128.97,0.05669336]
[1725564994908,33.56918462,129.0,128.97,0.05669336]
[1725564995310,3.8771,128.98,128.97,0.05669336]
[1725564995709,0.05918462,129.0,128.97,0.05669336]
[1725564995908,3.93578462,129.0,128.97,3.93389336]
[1725564997007,0.05918462,129.0,128.97,0.05669336]
[1725564998206,0.05918462,129.0,128.99,3.8768]
[1725565001110,0.05918462,129.0,128.98,6.68]
[1725565001311,0.05918462,129.0,128.97,0.05669336]
[1725565001506,26.84918462,129.0,128.97,0.05669336]
[1725565001813,30.6671,128.98,128.97,0.05669336]
[1725565002114,37.3971,128.98,128.97,0.05669336]
[1725565002306,33.52,128.98,128.89,3.81936837]
[1725565002617,33.52,128.98,128.88,4.1756]
[1725565002910,33.52,128.98,128.91,3.879]
[1725565003309,0.05251905,128.96,128.93,0.05491436]
[1725565003507,3.8783,128.95,128.93,0.05491436]
[1725565003914,3.93041905,128.96,128.93,3.93351436]
[1725565004517,3.878,128.95,128.93,3.93351436]
[1725565005418,0.05251905,128.96,128.94,3.8783]
[1725565005911,0.05251905,128.96,128.93,3.93341436]
[1725565006515,0.05251905,128.96,128.93,0.05491436]
[1725565007113,33.57251905,128.96,128.93,0.05491436]
[1725565007415,33.52,128.94,128.88,2.7571]
[1725565007910,33.52,128.92,128.84,1.3784]
[1725565008213,33.52,128.92,128.86,3.8805]
[1725565008407,0.05568607,128.89,128.87,0.05560655]
[1725565009306,3.93568607,128.89,128.87,0.05560655]
[1725565009511,0.05568607,128.89,128.87,0.05560655]
[1725565011414,0.05568607,128.89,128.87,3.93580655]
[1725565011606,0.05568607,128.89,128.87,0.05560655]
[1725565011808,3.93548607,128.89,128.87,3.93600655]
[1725565012011,0.05568607,128.89,128.87,0.05560655]
[1725565012509,0.05568607,128.89,128.87,3.93600655]
[1725565012705,0.05568607,128.89,128.87,0.05560655]
[1725565013105,0.05568607,128.89,128.88,3.8801]
[1725565017119,3.879,128.92,128.89,3.8797]
[1725565017318,3.8792,128.91,128.87,0.05560655]
[1725565017519,3.8792,128.91,128.88,3.8799]
[1725565017714,33.52,128.92,128.87,0.05560655]
[1725565017913,33.52,128.9,128.84,2.8355]
[1725565018112,0.05815114,128.88,128.86,0.05002679]
[1725565018614,3.8804,128.87,128.86,0.05002679]
[1725565019219,37.31617281,128.88,128.8,1.4174]
[1725565019425,33.52,128.86,128.8,1.4174]
[1725565019811,3.8812,128.85,128.82,3.8818]
[1725565020222,3.94063001,128.85,128.82,3.93547089]
[1725565020724,0.05943001,128.85,128.82,3.93547089]
[1725565021123,0.05943001,128.85,128.84,3.8813]
[1725565021324,0.05943001,128.85,128.82,0.05367089]
[1725565021823,3.94063001,128.85,128.82,0.05367089]
[1725565022121,0.05943001,128.85,128.82,0.05367089]
[1725565022825,0.05943001,128.85,128.84,3.8813]
[1725565024025,38.54007597,128.92,128.81,33.52]
[1725565024325,3.8798,128.89,128.81,33.52]
[1725565024522,3.8798,128.89,128.86,3.8805]
[1725565024934,3.92988923,128.89,128.86,3.93408945]
[1725565025834,0.05008923,128.89,128.86,0.05358945]
[1725565026533,3.8803,128.88,128.86,0.05358945]
[1725565027033,3.8804,128.87,128.86,0.05358945]
[1725565029130,3.8803,128.88,128.86,0.05358945]
[1725565029727,3.8804,128.87,128.86,0.05358945]
[1725565031930,0.05008923,128.89,128.86,0.05358945]
[1725565032132,0.05008923,128.89,128.86,3.9522712]
[1725565032433,0.05008923,128.89,128.88,3.8801]
[1725565032740,33.52,128.95,128.87,2.6566]
[1725565033040,3.8791,128.92,128.89,3.8797]
[1725565033243,33.52,128.93,128.87,2.6566]
[1725565033438,33.52,128.93,128.81,7.7643]
[1725565033439,33.52,128.93,128.81,41.2843]
[1725565033737,0.05536819,128.88,128.86,0.05107642]
[1725565033940,0.05667929,128.88,128.86,0.05107642]
[1725565034138,0.05667929,128.88,128.78,3.8829]
[1725565034139,33.52,128.87,128.78,3.8829]
[1725565034341,33.52,128.85,128.77,3.87443523]
[1725565034639,3.882,128.82,128.79,3.8827]
[1725565035237,3.93883048,128.82,128.79,3.93239983]
[1725565035438,3.8824,128.81,128.79,0.04969983]
[1725565035841,0.05683048,128.82,128.79,0.04969983]
[1725565036844,3.8824,128.81,128.79,0.04969983]
[1725565038753,3.93893048,128.82,128.79,3.93249983]
[1725565039045,0.05683048,128.82,128.79,0.04969983]
[1725565040143,0.05683048,128.82,128.8,3.8825]